{"text_format":"1","workbook":"xlsx","n_sheets":4,"sheets":["1. Stammdaten (Empfänger)","Budget Finanzierungen","Weiterleitung von Mitteln","Beispiel"],"not_rendered":{"charts":0,"images":0,"macros":0,"external_links":0,"defined_names":7,"comments":0,"pivot_tables":0},"unopened":[],"bounds":{"document_bytes":16777216,"sheet_cells":100000,"rows_first":2000,"rows_last":500,"rows_between":2000,"halvings":0,"cell_chars":16384,"cell_head_chars":4096},"cells_cut":0,"cells_raw":0,"read":"whole","date_system":"1900"}

{"sheet":"1. Stammdaten (Empfänger)","index":0,"n_rows":24,"n_cols":10,"rows_kept":24,"cut":false,"hidden":false,"merged":[[1,9,1,14],[23,2,23,6],[1,1,1,6],[3,2,3,6],[21,2,21,6],[5,2,5,4],[17,3,17,6],[18,3,18,6],[20,3,20,6],[19,3,19,6],[6,2,6,6],[8,4,8,6],[9,4,9,6],[7,2,7,6]]}
[null,"CONFIDENTIAL"]
[null,"Stammdaten",null,null,null,null,null,null,null,"Bearbeitungshinweise für Zuschussempfangende Partei (ZE):\nBitte füllen Sie zuerst die folgenden Stammdaten aus, bevor Sie dann den Reiter \"Budget\" ausfüllen.\nBitte füllen Sie nur die blau hinterlegten Zellen aus. Alle anderen Zellen werden automatisch berechnet."]
[]
[null,"Name der ZE: ",null,null,null,null,null,{"$f":"IF(C4=\"Bitte eintragen\",\"- Bitte den Namen Ihres Vereins im Feld <Name des Zuschussempfängers> eintragen; \",\" \")","v":" "}]
[]
[null,"Handelt es sich um das erste Budget \noder um eine Vertragsanpassung?","Auswählen",null,null,null,"Nur bei Vertragsergänzung auswählen",{"$f":"IF(C6=\"Vertragsanpassung\",1,0)","v":0}]
[null,"Titel des Projekts",null,null,null,null,null,{"$f":"IF(C7=\"Veranstaltung\",1,IF(C7=\"Projekt\",1,0))","v":0}]
[null,"Vertragsnummer "]
[null,"Benötigen Sie Verwaltungsgemeinkosten?","Auswählen","Bitte die Höhe der Verwaltungsgemein-kosten in Prozent angeben ",null,null,null,{"$f":"IF(C9=\"Ja, anderer Betrag\",1,0)","v":0}]
[null,"Leisten Sie einen \n(finanziellen) Eigenbeitrag?","Auswählen","Höhe in EUR",null,null,null,{"$f":"IF(C10=\"Ja, anderer Betrag\",1,0)","v":0}]
[null,"Von wie vielen Gebern soll das Projekt mitfinanziert werden  (neben der GIZ)?","Auswählen","Name des Drittmittelgebers",null,"Höhe der Drittmittel in EUR"]
[null,null,null,"Name des Drittmittelgebers",null,"Höhe der Drittmittel in EUR",null,{"$f":"IF(C12=\"Ja\",1,0)","v":0}]
[null,null,null,"Name des Drittmittelgebers",null,"Höhe der Drittmittel in EUR",null,{"$f":"IF(C13=\"Ja\",1,0)","v":0}]
[null,null,null,"Name des Drittmittelgebers",null,"Höhe der Drittmittel in EUR"]
[null,null,null,"Name des Drittmittelgebers",null,"Höhe der Drittmittel in EUR"]
[null,null,null,"Name des Drittmittelgebers",null,"Höhe der Drittmittel in EUR"]
[null,null,null,"Name des Drittmittelgebers",null,"Höhe der Drittmittel in EUR"]
[null,"Sollen Mittel an Drittempfänger-Organisationen weitergeleitet werden? (Bitte beachten Sie, dass hiermit keine Leistungen gemeint sind) ","Auswählen","Das sind Partnerorganisationen, die eigenständig einen Teil des zu finanzierenden Projekts der ZE umsetzen. Es muss ein gesondertes Budget eingereicht und eine kaufmännische und rechtliche Eignungsprüfung (nur die Kriterien: Rechtspersönlichkeit und Gemeinnützigkeit) durch das GIZ-Projekt durchgeführt werden. "]
[null,"Werden Medikamente und/oder Pestizide und/oder Mineraldünger beschafft?  ","Auswählen","Ein gesonderter, GIZ-interner Genehmigungsprozess ist notwendig"]
[null,"Beträgt der Sachbeschaffungsanteil mehr als EUR 1.000.000 oder mehr als 50% bei einem Vertragswert der Finanzierung von mindestens EUR 400.000?","Auswählen","Ein gesonderter, GIZ-interner Genehmigungsprozess ist notwendig"]
[null,"Werden Baumaßnahmen finanziert?  ","Auswählen","Ein gesonderter, GIZ- interner Genehmigungsprozess ist notwendig.  \nBitte beachten Sie, dass Baumaßnahmen im Rahmen eines örtlichen Zuschusses nur in seltenen Ausnahmen durch die GIZ genehmigt werden."]
[null,"Sollen im Budget Ausfüllhilfen angezeigt werden? \n\"Ja\" zum Bearbeiten empfohlen\n\"Nein\" zur besseren Übersicht empfohlen","Auswählen"]
[]
[null,"Datum der Erstellung des Budgets:"]

{"sheet":"Budget Finanzierungen","index":1,"n_rows":181,"n_cols":15,"rows_kept":181,"cut":false,"hidden":false,"merged":[[4,14,4,23],[1,14,1,23],[1,0,1,8],[173,1,173,10],[171,1,171,7],[151,3,151,7],[5,1,5,7],[152,4,152,6],[153,1,153,7],[2,0,2,9],[5,8,5,9],[6,9,150,9],[6,3,6,7],[44,3,44,7],[150,1,150,7],[133,3,133,7],[167,3,167,6],[168,3,168,6],[169,3,169,6],[170,3,170,6],[138,4,138,6],[139,4,139,6],[140,4,140,6],[141,4,141,6],[180,1,180,9],[177,1,177,9],[171,8,171,9],[178,1,178,9],[175,1,176,9],[154,3,154,7],[144,3,144,7],[162,3,162,7],[161,1,161,7],[163,3,163,6],[165,3,165,6],[166,3,166,6],[164,3,164,6],[175,0,176,0],[175,10,176,10],[134,4,134,6],[135,4,135,6],[136,4,136,6],[137,4,137,6],[116,3,116,7],[110,3,110,7],[111,3,111,7],[112,3,112,7],[113,3,113,7],[114,3,114,7],[115,3,115,7],[117,3,117,7],[118,3,118,7],[119,3,119,7],[142,4,142,6],[143,4,143,6],[120,3,120,7],[121,3,121,7],[122,3,122,7],[123,3,123,7],[124,3,124,7],[125,3,125,7],[45,3,45,7],[46,3,46,7],[47,3,47,7],[48,3,48,7],[49,3,49,7],[50,3,50,7],[51,3,51,7],[52,3,52,7],[53,3,53,7],[54,3,54,7],[55,3,55,7],[56,3,56,7],[57,3,57,7],[58,3,58,7],[59,3,59,7],[60,3,60,7],[61,3,61,7],[62,3,62,7],[72,3,72,7],[73,3,73,7],[94,3,94,7],[95,3,95,7],[96,3,96,7],[97,3,97,7],[98,3,98,7],[100,3,100,7],[63,3,63,7],[64,3,64,7],[65,3,65,7],[66,3,66,7],[67,3,67,7],[68,3,68,7],[69,3,69,7],[70,3,70,7],[71,3,71,7],[93,3,93,7],[99,3,99,7],[74,3,74,7],[101,3,101,7],[102,3,102,7],[103,3,103,7],[104,3,104,7],[105,3,105,7],[106,3,106,7],[107,3,107,7],[108,3,108,7],[109,3,109,7],[126,3,126,7],[127,3,127,7],[128,3,128,7],[155,3,155,7],[156,3,156,7],[157,3,157,7],[158,3,158,7],[159,3,159,7],[160,3,160,7],[129,3,129,7],[130,3,130,7],[131,3,131,7],[132,3,132,7],[145,3,145,7],[146,3,146,7],[147,3,147,7],[148,3,148,7],[149,3,149,7]]}
[null,"CONFIDENTIAL"]
[{"$f":"IF('1. Stammdaten (Empfänger)'!C4=\"\",\"BITTE ZUERST REITER 'Stammdaten' AUSFÜLLEN (s.u.)\",CONCATENATE(\"Budget / Finanzierungsplan - Anlage 1\",CHAR(10),'1. Stammdaten (Empfänger)'!C4,\" - \",'1. Stammdaten (Empfänger)'!C7,\"\",'1. Stammdaten (Empfänger)'!E7,\"\",IF(L6=\"VE\",CONCATENATE(\" - \",'1. Stammdaten (Empfänger)'!G6,\" VERTRAGSERGÄNZUNG\",\"\"),\"\")))","v":"BITTE ZUERST REITER 'Stammdaten' AUSFÜLLEN (s.u.)"},null,null,null,null,null,null,null,null,{"$f":"'1. Stammdaten (Empfänger)'!C24","v":"00:00:00"},null,null,null,"Keine Änderung","Bearbeitunghinweise:\nBitte füllen Sie zuerst die Stammdaten aus, bevor Sie dann diesen Reiter \"Budget\" ausfüllen.\nBitte füllen Sie im Reiter 'Budget' nur die blau hinterlegten Zellen aus. Alle anderen Zellen werden automatisch berechnet."]
[{"$f":"IF(NOT(ISBLANK('1. Stammdaten (Empfänger)'!C8)),CONCATENATE(\"Vertragsnummer: \",'1. Stammdaten (Empfänger)'!C8),\"\")","v":""}]
[null,null,null,null,null,null,null,null,null,"2025-02",null,null,null,"Änderung"]
[null,"Beschreibung","Code","Anzahl ","Einheit  (Person)","Anzahl","Einheit (z.B. Monat, Vertrag, Flug…)","Förderfähig bis zu  \nin EUR \n(Preis pro Einheit) ","Gesamt \nGIZ Anteil \nin EUR (bis zu)","Eigenbeitrag / Drittfinanzierung \nin EUR (bis zu) ",null,{"$f":"IF($L$6=\"VE\",CONCATENATE(\"Bei Vertragsanpassungen:\",CHAR(10),\"hat sich diese Budgetzeile geändert?\"),\"\")","v":""},null,null,"Generelle Hinweise: \nDieses Format des Budgets gilt als Abrechnungsgrundlage. Sie können gerne für Ihren internen Gebrauch weitere Dateien mit ausführlicheren Informationen erstellen.\nAlle Positionen, die im Budget aufgeführt sind, müssen sich in der Projektbeschreibung wiederfinden, um den Projektbezug ersichtlich zu machen. \nDie Tabelle ist mit Formeln gespeist, welche beibehalten werden müssen.  \nBitte behalten Sie die Formatierung mit zwei Nachkommastellen bei. \nEs empfiehlt sich, Einheiten, wenn möglich, aufzurunden. Die Kosten werden mit einem Wert \"bis zu\" vereinbart. "]
[null,{"$f":"IF('1. Stammdaten (Empfänger)'!C22=\"Ja\",CONCATENATE(\"Hinweis: Blaue Felder durch \",IF('1. Stammdaten (Empfänger)'!C4=\"\",\"die Zuschussempfangende Partei\",'1. Stammdaten (Empfänger)'!C4),\" auszufüllen\"),\"\")","v":""},null,null,null,null,null,null,{"$f":"IF('1. Stammdaten (Empfänger)'!C22=\"Ja\",\"Hinweis: Wird automatisch ausgefüllt\",\"\")","v":""},null,null,{"$f":"IF('1. Stammdaten (Empfänger)'!C6=\"Vertragsanpassung\",\"VE\",\"NOVE\")","v":"NOVE"}]
[1,"Personal\n(Hinweis: Es können ausschließlich Personaleinzelkosten (monatliches Arbeitgeberbrutto-Entgelt) abgerechnet werden. Zuschläge wie Personalgemeinkosten, die anteilig auf Personal berechnet werden, sind nicht förderfähig. Bitte erfassen Sie nur Funktionsbezeichnungen, keine Namen von Einzelpersonen.\n\na) Kosten für Arbeitnehmer*innen der ZE (nur Mitarbeitende ihrer Organisation): Der Nachweis muss in Form von Gehaltsabrechnungen bzw. bei anteiliger Finanzierung in Form von Gehaltsabrechnungen und Zeitaufschrieben erfolgen (siehe Link in 1b).\n\nb) Kosten für integrierte Gutachter*innen (Selbständige oder Angestellte Dritter, die an die ZE entsandt wurden), welche jeweils unter vergleichbaren Bedingungen wie angestellte Arbeitnehmer*innen tätig sind, sofern dies nach dem jeweils anwendbaren Recht des betreffenden Vertrages mit diesen integrierten Gutachter*innen rechtlich zulässig ist. Nachweisformen siehe: (Anlage 3a - Anforderungen an Zuschussempfänger hinsichtlich Budget und finanzieller Abwicklung)",null,{"$f":"IF('1. Stammdaten (Empfänger)'!C22=\"Ja\",CONCATENATE(\"AUSFÜLLHILFE: \",Beispiel!O6),\"\")","v":""},null,null,null,null,{"$f":"SUM(I8:I44)","v":0},"\n\n\n\n\n\n\n\n\n\n\n\n\nDie anteilige Finanzierung von Budgetlinien soll vermieden und nur  auf Personalkosten sowie Fair-Shared-Kosten angewandt werden.\n\nWeitere Kosten, welche im Rahmen der Projektumsetzung anfallen und nicht durch die GIZ finanziert werden, sind separat zu kalkulieren, entweder als Eigenbeitrag oder  finanzieller Beitrag  Dritter.",null,{"$f":"IF(L6=\"VE\",\"ACHTUNG: Kosten, die aufgrund von Währungsschwankungen entstehen, können nicht von der GIZ übernommen werden.\",\"\")","v":""}]
[null,null,null,null,"Person ",null,"Monate ",null,{"$f":"ROUND(D8*F8*H8,2)","v":0},null,null,"Keine Änderung"]
[null,null,null,null,"Person ",null,"Monate ",null,{"$f":"ROUND(D9*F9*H9,2)","v":0},null,null,"Keine Änderung"]
[null,null,null,null,"Person ",null,"Monate ",null,0,null,null,"Keine Änderung"]
[null,null,null,null,"Person ",null,"Monate ",null,0,null,null,"Keine Änderung"]
[null,null,null,null,"Person ",null,"Monate ",null,0,null,null,"Keine Änderung"]
[null,null,null,null,"Person ",null,"Monate ",null,0,null,null,"Keine Änderung"]
[null,null,null,null,"Person ",null,"Monate ",null,{"$f":"ROUND(D14*F14*H14,2)","v":0},null,null,"Keine Änderung"]
[null,null,null,null,"Person ",null,"Monate ",null,{"$f":"ROUND(D15*F15*H15,2)","v":0},null,null,"Keine Änderung"]
[null,null,null,null,"Person ",null,"Monate ",null,0,null,null,"Keine Änderung"]
[null,null,null,null,"Person ",null,"Monate ",null,{"$f":"ROUND(D17*F17*H17,2)","v":0},null,null,"Keine Änderung"]
[null,null,null,null,"Person ",null,"Monate ",null,0,null,null,"Keine Änderung"]
[null,null,null,null,"Person ",null,"Monate ",null,0,null,null,"Keine Änderung"]
[null,null,null,null,"Person ",null,"Monate ",null,0,null,null,"Keine Änderung"]
[null,null,null,null,"Person ",null,"Monate ",null,0,null,null,"Keine Änderung"]
[null,null,null,null,"Person ",null,"Monate ",null,0,null,null,"Keine Änderung"]
[null,null,null,null,"Person ",null,"Monate ",null,0,null,null,"Keine Änderung"]
[null,null,null,null,"Person ",null,"Monate ",null,0,null,null,"Keine Änderung"]
[null,null,null,null,"Person ",null,"Monate ",null,0,null,null,"Keine Änderung"]
[null,null,null,null,"Person ",null,"Monate ",null,0,null,null,"Keine Änderung"]
[null,null,null,null,"Person ",null,"Monate ",null,0,null,null,"Keine Änderung"]
[null,null,null,null,"Person ",null,"Monate ",null,{"$f":"ROUND(D28*F28*H28,2)","v":0},null,null,"Keine Änderung"]
[null,null,null,null,"Person ",null,"Monate ",null,0,null,null,"Keine Änderung"]
[null,null,null,null,"Person ",null,"Monate ",null,0,null,null,"Keine Änderung"]
[null,null,null,null,"Person ",null,"Monate ",null,0,null,null,"Keine Änderung"]
[null,null,null,null,"Person ",null,"Monate ",null,0,null,null,"Keine Änderung"]
[null,null,null,null,"Person ",null,"Monate ",null,0,null,null,"Keine Änderung"]
[null,null,null,null,"Person ",null,"Monate ",null,0,null,null,"Keine Änderung"]
[null,null,null,null,"Person ",null,"Monate ",null,0,null,null,"Keine Änderung"]
[null,null,null,null,"Person ",null,"Monate ",null,0,null,null,"Keine Änderung"]
[null,null,null,null,"Person ",null,"Monate ",null,0,null,null,"Keine Änderung"]
[null,null,null,null,"Person ",null,"Monate ",null,0,null,null,"Keine Änderung"]
[null,null,null,null,"Person ",null,"Monate ",null,0,null,null,"Keine Änderung"]
[null,null,null,null,"Person ",null,"Monate ",null,0,null,null,"Keine Änderung"]
[null,null,null,null,"Person ",null,"Monate ",null,0,null,null,"Keine Änderung"]
[null,null,null,null,"Person ",null,"Monate ",null,0,null,null,"Keine Änderung"]
[null,null,null,null,"Person ",null,"Monate ",null,0,null,null,"Keine Änderung"]
[null,null,null,null,"Person ",null,"Monate ",null,0,null,null,"Keine Änderung"]
[2,"Externe Dienstleistungen (Art/Inhalt der Leistung)",null,{"$f":"IF('1. Stammdaten (Empfänger)'!C22=\"Ja\",CONCATENATE(\"AUSFÜLLHILFE: \",Beispiel!O12),\"\")","v":""},null,null,null,null,{"$f":"SUM(I46:I74)","v":0}]
[null,null,null,"Vertrag/Verträge ",null,null,null,null,0,null,null,"Keine Änderung"]
[null,null,null,"Vertrag/Verträge ",null,null,null,null,0,null,null,"Keine Änderung"]
[null,null,null,"Vertrag/Vertäge ",null,null,null,null,0,null,null,"Keine Änderung"]
[null,null,null,"Vertrag/Verträge ",null,null,null,null,0,null,null,"Keine Änderung"]
[null,null,null,"Vertrag/Verträge ",null,null,null,null,0,null,null,"Keine Änderung"]
[null,null,null,"Vertrag/Verträge ",null,null,null,null,0,null,null,"Keine Änderung"]
[null,null,null,"Vertrag/Verträge ",null,null,null,null,0,null,null,"Keine Änderung"]
[null,null,null,"Vertrag/Verträge ",null,null,null,null,0,null,null,"Keine Änderung"]
[null,null,null,"Vertrag/Verträge ",null,null,null,null,0,null,null,"Keine Änderung"]
[null,null,null,"Vertrag/Verträge ",null,null,null,null,0,null,null,"Keine Änderung"]
[null,null,null,"Vertrag/Verträge ",null,null,null,null,0,null,null,"Keine Änderung"]
[null,null,null,"Vertrag/Verträge ",null,null,null,null,0,null,null,"Keine Änderung"]
[null,null,null,"Vertrag/Verträge ",null,null,null,null,0,null,null,"Keine Änderung"]
[null,null,null,"Vertrag/Verträge ",null,null,null,null,0,null,null,"Keine Änderung"]
[null,null,null,"Vertrag/Verträge ",null,null,null,null,0,null,null,"Keine Änderung"]
[null,null,null,"Vertrag/Verträge ",null,null,null,null,0,null,null,"Keine Änderung"]
[null,null,null,"Vertrag/Verträge ",null,null,null,null,0,null,null,"Keine Änderung"]
[null,null,null,"Vertrag/Verträge ",null,null,null,null,0,null,null,"Keine Änderung"]
[null,null,null,"Vertrag/Verträge ",null,null,null,null,0,null,null,"Keine Änderung"]
[null,null,null,"Vertrag/Verträge ",null,null,null,null,0,null,null,"Keine Änderung"]
[null,null,null,"Vertrag/Verträge ",null,null,null,null,0,null,null,"Keine Änderung"]
[null,null,null,"Vertrag/Verträge ",null,null,null,null,0,null,null,"Keine Änderung"]
[null,null,null,"Vertrag/Verträge ",null,null,null,null,0,null,null,"Keine Änderung"]
[null,null,null,"Vertrag/Verträge ",null,null,null,null,0,null,null,"Keine Änderung"]
[null,null,null,"Vertrag/Verträge ",null,null,null,null,0,null,null,"Keine Änderung"]
[null,null,null,"Vertrag/Verträge ",null,null,null,null,0,null,null,"Keine Änderung"]
[null,null,null,"Vertrag/Verträge ",null,null,null,null,0,null,null,"Keine Änderung"]
[null,null,null,"Vertrag/Verträge ",null,null,null,null,0,null,null,"Keine Änderung"]
[null,null,null,"Vertrag/Verträge ",null,null,null,null,0,null,null,"Keine Änderung"]
[3,"Transportkosten / Reisekosten",null,{"$f":"IF('1. Stammdaten (Empfänger)'!C22=\"Ja\",CONCATENATE(\"AUSFÜLLHILFE: \",Beispiel!O23),\"\")","v":""},null,null,null,null,{"$f":"SUM(I76:I93)","v":0}]
[null,null,null,null,null,null,null,null,0,null,null,"Keine Änderung"]
[null,null,null,null,null,null,null,null,0,null,null,"Keine Änderung"]
[null,null,null,null,null,null,null,null,0,null,null,"Keine Änderung"]
[null,null,null,null,null,null,null,null,0,null,null,"Keine Änderung"]
[null,null,null,null,null,null,null,null,0,null,null,"Keine Änderung"]
[null,null,null,null,null,null,null,null,0,null,null,"Keine Änderung"]
[null,null,null,null,null,null,null,null,0,null,null,"Keine Änderung"]
[null,null,null,null,null,null,null,null,0,null,null,"Keine Änderung"]
[null,null,null,null,null,null,null,null,0,null,null,"Keine Änderung"]
[null,null,null,null,null,null,null,null,0,null,null,"Keine Änderung"]
[null,null,null,null,null,null,null,null,0,null,null,"Keine Änderung"]
[null,null,null,null,null,null,null,null,0,null,null,"Keine Änderung"]
[null,null,null,null,null,null,null,null,0,null,null,"Keine Änderung"]
[null,null,null,null,null,null,null,null,0,null,null,"Keine Änderung"]
[null,null,null,null,null,null,null,null,0,null,null,"Keine Änderung"]
[null,null,null,null,null,null,null,null,0,null,null,"Keine Änderung"]
[null,null,null,null,null,null,null,null,0,null,null,"Keine Änderung"]
[null,null,null,null,null,null,null,null,0,null,null,"Keine Änderung"]
[4,"CO2-Kompensation von Flugreisen",null,{"$f":"IF('1. Stammdaten (Empfänger)'!C22=\"Ja\",CONCATENATE(\"AUSFÜLLHILFE: \",Beispiel!O31),\"\")","v":""},null,null,null,null,{"$f":"SUM(I95:I99)","v":0}]
[null,null,null,"Kompensation",null,null,null,null,0,null,null,"Keine Änderung"]
[null,null,null,"Kompensation",null,null,null,null,0,null,null,"Keine Änderung"]
[null,null,null,"Kompensation",null,null,null,null,0,null,null,"Keine Änderung"]
[null,null,null,"Kompensation",null,null,null,null,0,null,null,"Keine Änderung"]
[null,null,null,"Kompensation",null,null,null,null,0,null,null,"Keine Änderung"]
[5,"Beschaffung von Sachgütern",null,{"$f":"IF('1. Stammdaten (Empfänger)'!C22=\"Ja\",CONCATENATE(\"AUSFÜLLHILFE: \",Beispiel!O38),\"\")","v":""},null,null,null,null,{"$f":"SUM(I101:I116)","v":0}]
[null,null,null,null,null,null,null,null,0,null,null,"Keine Änderung"]
[null,null,null,null,null,null,null,null,0,null,null,"Keine Änderung"]
[null,null,null,null,null,null,null,null,0,null,null,"Keine Änderung"]
[null,null,null,null,null,null,null,null,0,null,null,"Keine Änderung"]
[null,null,null,null,null,null,null,null,0,null,null,"Keine Änderung"]
[null,null,null,null,null,null,null,null,0,null,null,"Keine Änderung"]
[null,null,null,null,null,null,null,null,0,null,null,"Keine Änderung"]
[null,null,null,null,null,null,null,null,0,null,null,"Keine Änderung"]
[null,null,null,null,null,null,null,null,0,null,null,"Keine Änderung"]
[null,null,null,null,null,null,null,null,0,null,null,"Keine Änderung"]
[null,null,null,null,null,null,null,null,0,null,null,"Keine Änderung"]
[null,null,null,null,null,null,null,null,0,null,null,"Keine Änderung"]
[null,null,null,null,null,null,null,null,0,null,null,"Keine Änderung"]
[null,null,null,null,null,null,null,null,0,null,null,"Keine Änderung"]
[null,null,null,null,null,null,null,null,0,null,null,"Keine Änderung"]
[null,null,null,null,null,null,null,null,0,null,null,"Keine Änderung"]
[6,"Sonstige Kosten / Verbrauchsmaterialien",null,{"$f":"IF('1. Stammdaten (Empfänger)'!C22=\"Ja\",CONCATENATE(\"AUSFÜLLHILFE: \",TRIM(Beispiel!O49)),\"\")","v":""},null,null,null,null,{"$f":"SUM(I118:I133)","v":0}]
[null,null,null,null,null,null,null,null,0,null,null,"Keine Änderung"]
[null,null,null,null,null,null,null,null,0,null,null,"Keine Änderung"]
[null,null,null,null,null,null,null,null,0,null,null,"Keine Änderung"]
[null,null,null,null,null,null,null,null,0,null,null,"Keine Änderung"]
[null,null,null,null,null,null,null,null,0,null,null,"Keine Änderung"]
[null,null,null,null,null,null,null,null,0,null,null,"Keine Änderung"]
[null,null,null,null,null,null,null,null,0,null,null,"Keine Änderung"]
[null,null,null,null,null,null,null,null,0,null,null,"Keine Änderung"]
[null,null,null,null,null,null,null,null,0,null,null,"Keine Änderung"]
[null,null,null,null,null,null,null,null,0,null,null,"Keine Änderung"]
[null,null,null,null,null,null,null,null,0,null,null,"Keine Änderung"]
[null,null,null,null,null,null,null,null,0,null,null,"Keine Änderung"]
[null,null,null,null,null,null,null,null,0,null,null,"Keine Änderung"]
[null,null,null,null,null,null,null,null,0,null,null,"Keine Änderung"]
[null,null,null,null,null,null,null,null,0,null,null,"Keine Änderung"]
[null,null,null,null,null,null,null,null,0,null,null,"Keine Änderung"]
[7,"Mittel zur direkten Unterstützung von Drittbegünstigten\n(Hinweis: Diese Budgetlinie bezieht sich ausschließlich auf finanzielle Beiträge an Drittbegünstigte. Die Beiträge dürfen nicht für den Erwerb von Medikamenten, Pestiziden und/oder Mineraldüngern verwendet werden. Das Auswahlverfahren für die Drittbegünstigten muss in der Projektbeschreibung verdeutlicht sein. Nachweise: siehe Unterbudgetlinie)",null,{"$f":"IF('1. Stammdaten (Empfänger)'!C22=\"Ja\",CONCATENATE(\"AUSFÜLLHILFE: \",TRIM(Beispiel!O60)),\"\")","v":""},null,null,null,null,{"$f":"SUM(I135:I144)","v":0},null,null,{"$f":"IF(L133=\"VE\",\"ACHTUNG: Kosten, die aufgrund von Währungsschwankungen entstehen, können nicht von der GIZ übernommen werden.\",\"\")","v":""}]
[null,"XXX (Abrechnung erfolgt gegen …)",null,null,null,null,null,null,{"$f":"ROUND(D135*H135,2)","v":0},null,null,"Keine Änderung"]
[null,"XXX (Abrechnung erfolgt gegen …)",null,null,null,null,null,null,{"$f":"ROUND(D136*H136,2)","v":0},null,null,"Keine Änderung"]
[null,"XXX (Abrechnung erfolgt gegen …)",null,null,null,null,null,null,0,null,null,"Keine Änderung"]
[null,"XXX (Abrechnung erfolgt gegen …)",null,null,null,null,null,null,0,null,null,"Keine Änderung"]
[null,"XXX (Abrechnung erfolgt gegen …)",null,null,null,null,null,null,0,null,null,"Keine Änderung"]
[null,"XXX (Abrechnung erfolgt gegen …)",null,null,null,null,null,null,0,null,null,"Keine Änderung"]
[null,"XXX (Abrechnung erfolgt gegen …)",null,null,null,null,null,null,0,null,null,"Keine Änderung"]
[null,"XXX (Abrechnung erfolgt gegen …)",null,null,null,null,null,null,0,null,null,"Keine Änderung"]
[null,"XXX (Abrechnung erfolgt gegen …)",null,null,null,null,null,null,0,null,null,"Keine Änderung"]
[null,"XXX (Abrechnung erfolgt gegen …)",null,null,null,null,null,null,0,null,null,"Keine Änderung"]
[8,"Fair Shared Costs (gemäß dem Fair Shared Cost Modell der ZE)",null,{"$f":"IF('1. Stammdaten (Empfänger)'!C22=\"Ja\",CONCATENATE(\"AUSFÜLLHILFE: \",TRIM(Beispiel!O65)),\"\")","v":""},null,null,null,null,{"$f":"SUM(I146:I150)","v":0}]
[null,null,null,null,null,null,null,null,0,null,null,"Keine Änderung"]
[null,null,null,null,null,null,null,null,0,null,null,"Keine Änderung"]
[null,null,null,null,null,null,null,null,0,null,null,"Keine Änderung"]
[null,null,null,null,null,null,null,null,0,null,null,"Keine Änderung"]
[null,null,null,null,null,null,null,null,0,null,null,"Keine Änderung"]
[null,"Zwischensumme - direkte Kosten",null,null,null,null,null,null,{"$f":"I117+I100+I45+I7+I75+I134+I145+I94","v":0}]
[9,"Verwaltungsgemeinkosten ",null,{"$f":"IF('1. Stammdaten (Empfänger)'!C22=\"Ja\",CONCATENATE(\"AUSFÜLLHILFE: \",TRIM(Beispiel!O69)),\"\")","v":""},null,null,null,null,{"$f":"I153","v":0}]
[null,"Verwaltungsgemeinkosten (auf Budgetlinie 1-X)",null,{"$f":"'1. Stammdaten (Empfänger)'!E9","v":0},null,null,null,{"$f":"I151","v":0},{"$f":"ROUND(D153*H153,2)","v":0},null,null,"Keine Änderung"]
[null,"Zwischensumme - Finanzierung durch GIZ (bis zu - gegen Nachweis)*\n(direkte Kosten + Verwaltungsgemeinkosten)",null,null,null,null,null,null,{"$f":"I151+I152","v":0}]
[10,"Weiterleitung von Mitteln an Drittempfänger\n- ein detailliertes Budget muss eingereicht werden -",null,{"$f":"IF('1. Stammdaten (Empfänger)'!C22=\"Ja\",CONCATENATE(\"AUSFÜLLHILFE: \",TRIM(Beispiel!O72)),\"\")","v":""},null,null,null,null,{"$f":"SUM(I156:I161)","v":0}]
[null,null,null,"Weiterleitung",null,null,null,null,0,null,null,"Keine Änderung"]
[null,"XYZ (Name Drittempfänger-Organisation) ",null,"Weiterleitung",null,null,null,0,0,null,null,"Keine Änderung"]
[null,"XYZ (Name Drittempfänger-Organisation) ",null,"Weiterleitung",null,null,null,0,0,null,null,"Keine Änderung"]
[null,"XYZ (Name Drittempfänger-Organisation) ",null,"Weiterleitung",null,null,null,0,0,null,null,"Keine Änderung"]
[null,"XYZ (Name Drittempfänger-Organisation) ",null,"Weiterleitung",null,null,null,0,0,null,null,"Keine Änderung"]
[null,"XYZ (Name Drittempfänger-Organisation) ",null,"Weiterleitung",null,null,null,0,0,null,"Anteile in Prozent ","Keine Änderung"]
[null,"GIZ Anteil (bis zu - gegen Nachweis)*",null,null,null,null,null,null,{"$f":"+I154+I155","v":0},null,{"$f":"IFERROR(I162/$I$172,\"\")","v":""}]
[11,"Eigenbeitrag / Drittfinanzierung",null,{"$f":"IF('1. Stammdaten (Empfänger)'!C22=\"Ja\",CONCATENATE(\"AUSFÜLLHILFE: \",TRIM(Beispiel!O77)),\"\")","v":""},null,null,null,null,null,{"$f":"SUM(J164:J171)","v":0}]
[null,{"$f":"_xlfn.IFS('1. Stammdaten (Empfänger)'!C10=\"Nein\",\"kein finanzieller Eigenbeitrag\", '1. Stammdaten (Empfänger)'!C10=\"Ja\",'1. Stammdaten (Empfänger)'!C4, '1. Stammdaten (Empfänger)'!C10=\"Auswählen\", \"bitte füllen Sie die Stammdaten vollständig aus\",TRUE,\"\")","v":"bitte füllen Sie die Stammdaten vollständig aus"},null,"Beitrag ",null,null,null,null,null,{"$f":"H164","v":0},{"$f":"IFERROR(J164/$I$172,\"\")","v":""},"Keine Änderung"]
[null,{"$f":"_xlfn.IFS('1. Stammdaten (Empfänger)'!C11=0,\"Keine Drittmittelfinanzierung\",'1. Stammdaten (Empfänger)'!C11= \"Auswählen\",\"bitte füllen Sie die Stammdaten vollständig aus\", '1. Stammdaten (Empfänger)'!C11>0,'1. Stammdaten (Empfänger)'!E11,TRUE,\"\")","v":"bitte füllen Sie die Stammdaten vollständig aus"},null,"Beitrag ",null,null,null,{"$f":"_xlfn.IFS('1. Stammdaten (Empfänger)'!$C$11=\"Auswählen\", \"\",'1. Stammdaten (Empfänger)'!$C$11>0,'1. Stammdaten (Empfänger)'!G11, TRUE,\"\")","v":""},null,{"$f":"H165","v":""},{"$f":"IFERROR(J165/$I$172,\"\")","v":""},"Keine Änderung"]
[null,{"$f":"_xlfn.IFS('1. Stammdaten (Empfänger)'!C11=0,\"Keine Drittmittelfinanzierung\",'1. Stammdaten (Empfänger)'!C11= \"Auswählen\",\"bitte füllen Sie die Stammdaten vollständig aus\", '1. Stammdaten (Empfänger)'!C11>0,'1. Stammdaten (Empfänger)'!E12,TRUE,\"\")","v":"bitte füllen Sie die Stammdaten vollständig aus"},null,"Beitrag ",null,null,null,{"$f":"_xlfn.IFS('1. Stammdaten (Empfänger)'!$C$11=\"Auswählen\", \"\",'1. Stammdaten (Empfänger)'!$C$11>0,'1. Stammdaten (Empfänger)'!G12, TRUE,\"\")","v":""},null,"","","Keine Änderung"]
[null,{"$f":"_xlfn.IFS('1. Stammdaten (Empfänger)'!C11=0,\"Keine Drittmittelfinanzierung\",'1. Stammdaten (Empfänger)'!C11= \"Auswählen\",\"bitte füllen Sie die Stammdaten vollständig aus\", '1. Stammdaten (Empfänger)'!C11>0,'1. Stammdaten (Empfänger)'!E13,TRUE,\"\")","v":"bitte füllen Sie die Stammdaten vollständig aus"},null,"Beitrag ",null,null,null,{"$f":"_xlfn.IFS('1. Stammdaten (Empfänger)'!$C$11=\"Auswählen\", \"\",'1. Stammdaten (Empfänger)'!$C$11>0,'1. Stammdaten (Empfänger)'!G13, TRUE,\"\")","v":""},null,"","","Keine Änderung"]
[null,{"$f":"_xlfn.IFS('1. Stammdaten (Empfänger)'!C11=0,\"Keine Drittmittelfinanzierung\",'1. Stammdaten (Empfänger)'!C11= \"Auswählen\",\"bitte füllen Sie die Stammdaten vollständig aus\", '1. Stammdaten (Empfänger)'!C11>0,'1. Stammdaten (Empfänger)'!E14,TRUE,\"\")","v":"bitte füllen Sie die Stammdaten vollständig aus"},null,"Beitrag ",null,null,null,{"$f":"_xlfn.IFS('1. Stammdaten (Empfänger)'!$C$11=\"Auswählen\", \"\",'1. Stammdaten (Empfänger)'!$C$11>0,'1. Stammdaten (Empfänger)'!G14, TRUE,\"\")","v":""},null,"","","Keine Änderung"]
[null,{"$f":"_xlfn.IFS('1. Stammdaten (Empfänger)'!C11=0,\"Keine Drittmittelfinanzierung\",'1. Stammdaten (Empfänger)'!C11= \"Auswählen\",\"bitte füllen Sie die Stammdaten vollständig aus\", '1. Stammdaten (Empfänger)'!C11>0,'1. Stammdaten (Empfänger)'!E15,TRUE,\"\")","v":"bitte füllen Sie die Stammdaten vollständig aus"},null,"Beitrag ",null,null,null,{"$f":"_xlfn.IFS('1. Stammdaten (Empfänger)'!$C$11=\"Auswählen\", \"\",'1. Stammdaten (Empfänger)'!$C$11>0,'1. Stammdaten (Empfänger)'!G15, TRUE,\"\")","v":""},null,"","","Keine Änderung"]
[null,{"$f":"_xlfn.IFS('1. Stammdaten (Empfänger)'!C11=0,\"Keine Drittmittelfinanzierung\",'1. Stammdaten (Empfänger)'!C11= \"Auswählen\",\"bitte füllen Sie die Stammdaten vollständig aus\", '1. Stammdaten (Empfänger)'!C11>0,'1. Stammdaten (Empfänger)'!E16,TRUE,\"\")","v":"bitte füllen Sie die Stammdaten vollständig aus"},null,"Beitrag ",null,null,null,{"$f":"_xlfn.IFS('1. Stammdaten (Empfänger)'!$C$11=\"Auswählen\", \"\",'1. Stammdaten (Empfänger)'!$C$11>0,'1. Stammdaten (Empfänger)'!G16, TRUE,\"\")","v":""},null,"","","Keine Änderung"]
[null,{"$f":"_xlfn.IFS('1. Stammdaten (Empfänger)'!C11=0,\"Keine Drittmittelfinanzierung\",'1. Stammdaten (Empfänger)'!C11= \"Auswählen\",\"bitte füllen Sie die Stammdaten vollständig aus\", '1. Stammdaten (Empfänger)'!C11>0,'1. Stammdaten (Empfänger)'!E17,TRUE,\"\")","v":"bitte füllen Sie die Stammdaten vollständig aus"},null,"Beitrag ",null,null,null,{"$f":"_xlfn.IFS('1. Stammdaten (Empfänger)'!$C$11=\"Auswählen\", \"\",'1. Stammdaten (Empfänger)'!$C$11>0,'1. Stammdaten (Empfänger)'!G17, TRUE,\"\")","v":""},null,"",{"$f":"IFERROR(J171/$I$172,\"\")","v":""},"Keine Änderung"]
[null,"Gesamtfinanzierung ",null,null,null,null,null,null,{"$f":"I162+J163","v":0},null,{"$f":"SUM(K162:K171)","v":0}]
[]
[null,"*Alle Budgetlinien (mit Ausnahme der Verwaltungsgemeinkosten) müssen gegen Nachweis abgerechnet werden."]
[]
[null,"Information: Sofern Vergaben für externe Dienstleistungen und/oder für Sachgüter und/oder Lieferungen von GIZ Geldern finanziert werden sollen, müssen die relevanten Vergaberichtlinien gemäß Vertragstext eingehalten werden!"]
[]
[]
[null,"Gewinne der ZE werden nicht finanziert."]
[]
[null,"Bei Vertragsergänzungen: Bitte nehmen Sie Budgetanpassungen auf Basis des zuletzt vertraglich vereinbartem Budgets vor und markieren Sie die Änderungen farblich. Kosten, die aufgrund von Währungsschwankungen enstehen, können nicht von der GIZ übernommen werden."]

{"sheet":"Weiterleitung von Mitteln","index":2,"n_rows":154,"n_cols":14,"rows_kept":154,"cut":false,"hidden":false,"merged":[[143,1,143,7],[144,1,144,7],[133,3,133,7],[134,3,134,7],[135,3,135,7],[136,3,136,7],[137,3,137,7],[138,3,138,7],[139,3,139,7],[131,4,131,6],[126,4,126,6],[127,4,127,6],[128,4,128,6],[125,3,125,7],[123,3,123,7],[124,3,124,7],[140,1,140,7],[142,4,142,6],[116,3,116,7],[117,3,117,7],[118,3,118,7],[119,3,119,7],[120,3,120,7],[121,3,121,7],[122,3,122,7],[129,4,129,6],[130,4,130,6],[106,3,106,7],[107,3,107,7],[109,3,109,7],[110,3,110,7],[111,3,111,7],[112,3,112,7],[113,3,113,7],[114,3,114,7],[115,3,115,7],[97,3,97,7],[98,3,98,7],[99,3,99,7],[100,3,100,7],[101,3,101,7],[102,3,102,7],[103,3,103,7],[104,3,104,7],[105,3,105,7],[87,3,87,7],[88,3,88,7],[89,3,89,7],[90,3,90,7],[92,3,92,7],[93,3,93,7],[94,3,94,7],[95,3,95,7],[96,3,96,7],[68,3,68,7],[79,3,79,7],[80,3,80,7],[81,3,81,7],[82,3,82,7],[83,3,83,7],[84,3,84,7],[85,3,85,7],[86,3,86,7],[69,3,69,7],[70,3,70,7],[71,3,71,7],[72,3,72,7],[73,3,73,7],[74,3,74,7],[75,3,75,7],[76,3,76,7],[77,3,77,7],[58,3,58,7],[59,3,59,7],[60,3,60,7],[62,3,62,7],[63,3,63,7],[64,3,64,7],[65,3,65,7],[66,3,66,7],[67,3,67,7],[146,1,146,9],[1,3,1,8],[2,0,2,9],[1,0,1,1],[78,3,78,7],[153,1,153,9],[4,1,4,7],[4,8,4,9],[5,3,5,7],[5,9,140,9],[43,3,43,7],[61,3,61,7],[91,3,91,7],[108,3,108,7],[151,1,151,9],[148,1,149,9],[150,1,150,9],[141,3,141,7],[132,3,132,7],[53,3,53,7],[54,3,54,7],[55,3,55,7],[56,3,56,7],[57,3,57,7],[44,3,44,7],[45,3,45,7],[46,3,46,7],[47,3,47,7],[48,3,48,7],[49,3,49,7],[50,3,50,7],[51,3,51,7],[52,3,52,7]]}
[null,"CONFIDENTIAL"]
["Budget/Finanzierungsplan - Anlage 1",null,null,"Name der Drittempfänger-Organisation:",null,null,null,null,null,{"$f":"'1. Stammdaten (Empfänger)'!C24","v":"00:00:00"},null,null,null,"Keine Änderung"]
[{"$f":"IF(NOT(ISBLANK('1. Stammdaten (Empfänger)'!C8)),CONCATENATE(\"Vertragsnummer: \",'1. Stammdaten (Empfänger)'!C8),\"\")","v":""},null,null,null,null,null,null,null,null,null,null,null,null,"Änderung"]
[null,"Beschreibung","Code ","Menge","Einheit (Person)","Anzahl","Einheit (z.B. Monat, Vertrag, Flug…)","Förderfähig bis zu  \nin EUR \n(Preis pro Einheit) ","Gesamt \nGIZ Anteil \nin EUR (bis zu)","Eigenbeitrag / Drittfinanzierung \nin EUR (bis zu) ",null,{"$f":"IF($L$5=\"VE\",CONCATENATE(\"Bei Vertragsanpassungen:\",CHAR(10),\"hat sich diese Budgetzeile geändert?\"),\"\")","v":""}]
[null,{"$f":"IF('1. Stammdaten (Empfänger)'!C22=\"Ja\",\"Hinweis: Blaue Felder durch den Drittempfänger auszufüllen\",\"\")","v":""},null,null,null,null,null,null,{"$f":"IF('1. Stammdaten (Empfänger)'!C22=\"Ja\",\"Hinweis: Wird automatisch ausgefüllt\",\"\")","v":""},null,null,{"$f":"IF('1. Stammdaten (Empfänger)'!C6=\"Vertragsanpassung\",\"VE\",\"NOVE\")","v":"NOVE"}]
[1,"Personal\n(Hinweis: Es können ausschließlich Personaleinzelkosten (monatliches Arbeitgeberbrutto-Entgelt) abgerechnet werden. Zuschläge wie Personalgemeinkosten, die anteilig auf Personal berechnet werden, sind nicht förderfähig. Bitte erfassen Sie nur Funktionsbezeichnungen, keine Namen von Einzelpersonen.\n\na) Kosten für Arbeitnehmer*innen der ZE (nur Mitarbeitende ihrer Organisation): Der Nachweis muss in Form von Gehaltsabrechnungen bzw. bei anteiliger Finanzierung in Form von Gehaltsabrechnungen und Zeitaufschrieben erfolgen (siehe Link in 1b).\n\nb) Kosten für integrierte Gutachter*innen (Selbständige oder Angestellte Dritter, die an die ZE entsandt wurden), welche jeweils unter vergleichbaren Bedingungen wie angestellte Arbeitnehmer*innen tätig sind, sofern dies nach dem jeweils anwendbaren Recht des betreffenden Vertrages mit diesen integrierten Gutachter*innen rechtlich zulässig ist. Nachweisformen siehe: (Anlage 3a - Anforderungen an Zuschussempfänger hinsichtlich Budget und finanzieller Abwicklung)",null,{"$f":"IF('1. Stammdaten (Empfänger)'!C22=\"Ja\",CONCATENATE(\"AUSFÜLLHILFE: \",Beispiel!O6),\"\")","v":""},null,null,null,null,{"$f":"SUM(I7:I43)","v":0},"\n\n\n\n\n\n\n\n\n\n\n\n\nDie anteilige Finanzierung von Budgetlinien soll vermieden und nur  auf Personalkosten sowie Fair-Shared-Kosten angewandt werden.\n\n",{"$f":"IF(SUM(I6,#REF!,I44)>0.4*I144,1,0)","v":{"$error":"#REF!"}},{"$f":"IF(L5=\"VE\",\"ACHTUNG: Kosten, die aufgrund von Währungsschwankungen entstehen, können nicht von der GIZ übernommen werden.\",\"\")","v":""}]
[null,null,null,null,"Person",null,"Monate",null,{"$f":"ROUND(D7*F7*H7,2)","v":0},null,null,"Keine Änderung"]
[null,null,null,null,"Person",null,"Monate",null,{"$f":"ROUND(D8*F8*H8,2)","v":0},null,null,"Keine Änderung"]
[null,null,null,null,"Person",null,"Monate",null,0,null,null,"Keine Änderung"]
[null,null,null,null,"Person",null,"Monate",null,0,null,null,"Keine Änderung"]
[null,null,null,null,"Person",null,"Monate",null,{"$f":"ROUND(D11*F11*H11,2)","v":0},null,null,"Keine Änderung"]
[null,null,null,null,"Person",null,"Monate",null,0,null,null,"Keine Änderung"]
[null,null,null,null,"Person",null,"Monate",null,0,null,null,"Keine Änderung"]
[null,null,null,null,"Person",null,"Monate",null,0,null,null,"Keine Änderung"]
[null,null,null,null,"Person",null,"Monate",null,0,null,null,"Keine Änderung"]
[null,null,null,null,"Person",null,"Monate",null,0,null,null,"Keine Änderung"]
[null,null,null,null,"Person",null,"Monate",null,{"$f":"ROUND(D17*F17*H17,2)","v":0},null,null,"Keine Änderung"]
[null,null,null,null,"Person",null,"Monate",null,{"$f":"ROUND(D18*F18*H18,2)","v":0}]
[null,null,null,null,"Person",null,"Monate",null,0]
[null,null,null,null,"Person",null,"Monate",null,0]
[null,null,null,null,"Person",null,"Monate",null,0]
[null,null,null,null,"Person",null,"Monate",null,0]
[null,null,null,null,"Person",null,"Monate",null,0]
[null,null,null,null,"Person",null,"Monate",null,0,null,null,"Keine Änderung"]
[null,null,null,null,"Person",null,"Monate",null,0]
[null,null,null,null,"Person",null,"Monate",null,0]
[null,null,null,null,"Person",null,"Monate",null,0]
[null,null,null,null,"Person",null,"Monate",null,0]
[null,null,null,null,"Person",null,"Monate",null,0]
[null,null,null,null,"Person",null,"Monate",null,0,null,null,"Keine Änderung"]
[null,null,null,null,"Person",null,"Monate",null,0,null,null,"Keine Änderung"]
[null,null,null,null,"Person",null,"Monate",null,0,null,null,"Keine Änderung"]
[null,null,null,null,"Person",null,"Monate",null,0,null,null,"Keine Änderung"]
[null,null,null,null,"Person",null,"Monate",null,0,null,null,"Keine Änderung"]
[null,null,null,null,"Person",null,"Monate",null,0,null,null,"Keine Änderung"]
[null,null,null,null,"Person",null,"Monate",null,0,null,null,"Keine Änderung"]
[null,null,null,null,"Person",null,"Monate",null,0,null,null,"Keine Änderung"]
[null,null,null,null,"Person",null,"Monate",null,0,null,null,"Keine Änderung"]
[null,null,null,null,"Person",null,"Monate",null,0,null,null,"Keine Änderung"]
[null,null,null,null,"Person",null,"Monate",null,0,null,null,"Keine Änderung"]
[null,null,null,null,"Person",null,"Monate",null,0,null,null,"Keine Änderung"]
[null,null,null,null,"Person",null,"Monate",null,0,null,null,"Keine Änderung"]
[null,null,null,null,"Person",null,"Monate",null,0,null,null,"Keine Änderung"]
[2,"Externe Dienstleistungen (Art/Inhalt der Leistung)",null,{"$f":"IF('1. Stammdaten (Empfänger)'!C22=\"Ja\",CONCATENATE(\"AUSFÜLLHILFE: \",Beispiel!O12),\"\")","v":""},null,null,null,null,{"$f":"SUM(I45:I61)","v":0}]
[null,null,null,"Vertrag/Verträge",null,null,null,null,0,null,null,"Keine Änderung"]
[null,null,null,"Vertrag/Verträge",null,null,null,null,0,null,null,"Keine Änderung"]
[null,null,null,"Vertrag/Verträge",null,null,null,null,0,null,null,"Keine Änderung"]
[null,null,null,"Vertrag/Verträge",null,null,null,null,0,null,null,"Keine Änderung"]
[null,null,null,"Vertrag/Verträge",null,null,null,null,0,null,null,"Keine Änderung"]
[null,null,null,"Vertrag/Verträge",null,null,null,null,0,null,null,"Keine Änderung"]
[null,null,null,"Vertrag/Verträge",null,null,null,null,0,null,null,"Keine Änderung"]
[null,null,null,"Vertrag/Verträge",null,null,null,null,0,null,null,"Keine Änderung"]
[null,null,null,"Vertrag/Verträge",null,null,null,null,0,null,null,"Keine Änderung"]
[null,null,null,"Vertrag/Verträge",null,null,null,null,0,null,null,"Keine Änderung"]
[null,null,null,"Vertrag/Verträge",null,null,null,null,0,null,null,"Keine Änderung"]
[null,null,null,"Vertrag/Verträge",null,null,null,null,0,null,null,"Keine Änderung"]
[null,null,null,"Vertrag/Verträge",null,null,null,null,0,null,null,"Keine Änderung"]
[null,null,null,"Vertrag/Verträge",null,null,null,null,0,null,null,"Keine Änderung"]
[null,null,null,"Vertrag/Verträge",null,null,null,null,0,null,null,"Keine Änderung"]
[null,null,null,"Vertrag/Verträge",null,null,null,null,0,null,null,"Keine Änderung"]
[null,null,null,"Vertrag/Verträge",null,null,null,null,0,null,null,"Keine Änderung"]
[3,"Transportkosten / Reisekosten",null,{"$f":"IF('1. Stammdaten (Empfänger)'!C22=\"Ja\",CONCATENATE(\"AUSFÜLLHILFE: \",Beispiel!O23),\"\")","v":""},null,null,null,null,{"$f":"SUM(I63:I78)","v":0}]
[null,null,null,null,null,null,null,null,0,null,null,"Keine Änderung"]
[null,null,null,null,null,null,null,null,0,null,null,"Keine Änderung"]
[null,null,null,null,null,null,null,null,0,null,null,"Keine Änderung"]
[null,null,null,null,null,null,null,null,0,null,null,"Keine Änderung"]
[null,null,null,null,null,null,null,null,0,null,null,"Keine Änderung"]
[null,null,null,null,null,null,null,null,0,null,null,"Keine Änderung"]
[null,null,null,null,null,null,null,null,0,null,null,"Keine Änderung"]
[null,null,null,null,null,null,null,null,0,null,null,"Keine Änderung"]
[null,null,null,null,null,null,null,null,0,null,null,"Keine Änderung"]
[null,null,null,null,null,null,null,null,0,null,null,"Keine Änderung"]
[null,null,null,null,null,null,null,null,0,null,null,"Keine Änderung"]
[null,null,null,null,null,null,null,null,0,null,null,"Keine Änderung"]
[null,null,null,null,null,null,null,null,0,null,null,"Keine Änderung"]
[null,null,null,null,null,null,null,null,0,null,null,"Keine Änderung"]
[null,null,null,null,null,null,null,null,0,null,null,"Keine Änderung"]
[null,null,null,null,null,null,null,null,0,null,null,"Keine Änderung"]
["4","CO2-Kompensation von Flugreisen",null,{"$f":"IF('1. Stammdaten (Empfänger)'!C22=\"Ja\",CONCATENATE(\"AUSFÜLLHILFE: \",Beispiel!O31),\"\")","v":""},null,null,null,null,{"$f":"SUM(I80:I91)","v":0}]
[null,null,null,"Kompensation",null,null,null,null,0,null,null,"Keine Änderung"]
[null,null,null,"Kompensation",null,null,null,null,0,null,null,"Keine Änderung"]
[null,null,null,"Kompensation",null,null,null,null,0,null,null,"Keine Änderung"]
[null,null,null,"Kompensation",null,null,null,null,0,null,null,"Keine Änderung"]
[null,null,null,"Kompensation",null,null,null,null,0,null,null,"Keine Änderung"]
[null,null,null,"Kompensation",null,null,null,null,0,null,null,"Keine Änderung"]
[null,null,null,"Kompensation",null,null,null,null,0,null,null,"Keine Änderung"]
[null,null,null,"Kompensation",null,null,null,null,0,null,null,"Keine Änderung"]
[null,null,null,"Kompensation",null,null,null,null,0,null,null,"Keine Änderung"]
[null,null,null,"Kompensation",null,null,null,null,0,null,null,"Keine Änderung"]
[null,null,null,"Kompensation",null,null,null,null,0,null,null,"Keine Änderung"]
[null,null,null,"Kompensation",null,null,null,null,0,null,null,"Keine Änderung"]
[5,"Beschaffung von Sachgütern",null,{"$f":"IF('1. Stammdaten (Empfänger)'!C22=\"Ja\",CONCATENATE(\"AUSFÜLLHILFE: \",Beispiel!O38),\"\")","v":""},null,null,null,null,{"$f":"SUM(I93:I108)","v":0}]
[null,null,null,null,null,null,null,null,0,null,null,"Keine Änderung"]
[null,null,null,null,null,null,null,null,0,null,null,"Keine Änderung"]
[null,null,null,null,null,null,null,null,0,null,null,"Keine Änderung"]
[null,null,null,null,null,null,null,null,0,null,null,"Keine Änderung"]
[null,null,null,null,null,null,null,null,0,null,null,"Keine Änderung"]
[null,null,null,null,null,null,null,null,0,null,null,"Keine Änderung"]
[null,null,null,null,null,null,null,null,0,null,null,"Keine Änderung"]
[null,null,null,null,null,null,null,null,0,null,null,"Keine Änderung"]
[null,null,null,null,null,null,null,null,0,null,null,"Keine Änderung"]
[null,null,null,null,null,null,null,null,0,null,null,"Keine Änderung"]
[null,null,null,null,null,null,null,null,0,null,null,"Keine Änderung"]
[null,null,null,null,null,null,null,null,0,null,null,"Keine Änderung"]
[null,null,null,null,null,null,null,null,0,null,null,"Keine Änderung"]
[null,null,null,null,null,null,null,null,0,null,null,"Keine Änderung"]
[null,null,null,null,null,null,null,null,0,null,null,"Keine Änderung"]
[null,null,null,null,null,null,null,null,0,null,null,"Keine Änderung"]
[6,"Sonstige Kosten / Verbrauchsmaterialien",null,{"$f":"IF('1. Stammdaten (Empfänger)'!C22=\"Ja\",CONCATENATE(\"AUSFÜLLHILFE: \",TRIM(Beispiel!O49)),\"\")","v":""},null,null,null,null,{"$f":"SUM(I110:I125)","v":0}]
[null,null,null,null,null,null,null,null,0,null,null,"Keine Änderung"]
[null,null,null,null,null,null,null,null,0,null,null,"Keine Änderung"]
[null,null,null,null,null,null,null,null,0,null,null,"Keine Änderung"]
[null,null,null,null,null,null,null,null,0,null,null,"Keine Änderung"]
[null,null,null,null,null,null,null,null,0,null,null,"Keine Änderung"]
[null,null,null,null,null,null,null,null,0,null,null,"Keine Änderung"]
[null,null,null,null,null,null,null,null,0,null,null,"Keine Änderung"]
[null,null,null,null,null,null,null,null,0,null,null,"Keine Änderung"]
[null,null,null,null,null,null,null,null,0,null,null,"Keine Änderung"]
[null,null,null,null,null,null,null,null,0,null,null,"Keine Änderung"]
[null,null,null,null,null,null,null,null,0,null,null,"Keine Änderung"]
[null,null,null,null,null,null,null,null,0,null,null,"Keine Änderung"]
[null,null,null,null,null,null,null,null,0,null,null,"Keine Änderung"]
[null,null,null,null,null,null,null,null,0,null,null,"Keine Änderung"]
[null,null,null,null,null,null,null,null,0,null,null,"Keine Änderung"]
[null,null,null,null,null,null,null,null,0,null,null,"Keine Änderung"]
[7,"Mittel zur direkten Unterstützung von Drittbegünstigten\n(Hinweis: Diese Budgetlinie bezieht sich ausschließlich auf finanzielle Beiträge an Drittbegünstigte. Die Beiträge dürfen nicht für den Erwerb von Medikamenten, Pestiziden und/oder Mineraldüngern verwendet werden. Das Auswahlverfahren für die Drittbegünstigten muss in der Projektbeschreibung verdeutlicht sein. Nachweise: siehe Unterbudgetlinie)",null,{"$f":"IF('1. Stammdaten (Empfänger)'!C22=\"Ja\",CONCATENATE(\"AUSFÜLLHILFE: \",TRIM(Beispiel!O60)),\"\")","v":""},null,null,null,null,{"$f":"SUM(I127:I132)","v":0}]
[null,"XXX (Abrechnung erfolgt gegen…)",null,null,null,null,null,null,{"$f":"ROUND(D127*H127,2)","v":0},null,null,"Keine Änderung"]
[null,"XXX (Abrechnung erfolgt gegen…)",null,null,null,null,null,null,{"$f":"ROUND(D128*H128,2)","v":0},null,null,"Keine Änderung"]
[null,"XXX (Abrechnung erfolgt gegen…)",null,null,null,null,null,null,{"$f":"ROUND(D129*H129,2)","v":0},null,null,"Keine Änderung"]
[null,"XXX (Abrechnung erfolgt gegen…)",null,null,null,null,null,null,0,null,null,"Keine Änderung"]
[null,"XXX (Abrechnung erfolgt gegen…)",null,null,null,null,null,null,0,null,null,"Keine Änderung"]
[null,"XXX (Abrechnung erfolgt gegen…)",null,null,null,null,null,null,0,null,null,"Keine Änderung"]
[8,"Fair Shared Costs (gemäß dem Fair Shared Cost Modell der ZE)",null,{"$f":"IF('1. Stammdaten (Empfänger)'!C22=\"Ja\",CONCATENATE(\"AUSFÜLLHILFE: \",TRIM(Beispiel!O65)),\"\")","v":""},null,null,null,null,{"$f":"SUM(I134:I140)","v":0}]
[null,null,null,null,null,null,null,null,0,null,null,"Keine Änderung"]
[null,null,null,null,null,null,null,null,0,null,null,"Keine Änderung"]
[null,null,null,null,null,null,null,null,0,null,null,"Keine Änderung"]
[null,null,null,null,null,null,null,null,0,null,null,"Keine Änderung"]
[null,null,null,null,null,null,null,null,0,null,null,"Keine Änderung"]
[null,null,null,null,null,null,null,null,0,null,null,"Keine Änderung"]
[null,null,null,null,null,null,null,null,0,null,null,"Keine Änderung"]
[null,"Zwischensumme - direkte Kosten",null,null,null,null,null,null,{"$f":"I133+I126+I109+I79+I92+I62+I44+I6","v":0}]
[9,"Verwaltungsgemeinkosten ",null,{"$f":"IF('1. Stammdaten (Empfänger)'!C22=\"Ja\",CONCATENATE(\"AUSFÜLLHILFE: \",TRIM(Beispiel!O69)),\"\")","v":""},null,null,null,null,{"$f":"I143","v":0}]
[null,"Verwaltungsgemeinkosten (auf Budgetlinie 1-X)",null,0.12,null,null,null,{"$f":"I141","v":0},{"$f":"ROUND(D143*H143,2)","v":0},null,null,"Keine Änderung"]
[null,"Zwischensumme - Finanzierung durch GIZ (bis zu - gegen Nachweis)*\n(direkte Kosten + Verwaltungsgemeinkosten)",null,null,null,null,null,null,{"$f":"I141+I142","v":0}]
[null,"GIZ Anteil (bis zu - gegen Nachweis)*",null,null,null,null,null,null,{"$f":"I144","v":0}]
[]
[null,"*Alle Budgetlinien (mit Ausnahme der Verwaltungsgemeinkosten) müssen gegen Nachweis abgerechnet werden."]
[]
[null,"Information: Sofern Vergaben für externe Dienstleistungen und/oder für Sachgüter und/oder Lieferungen von GIZ Geldern finanziert werden sollen, müssen die relevanten Vergaberichtlinien gemäß Vertragstext eingehalten werden!"]
[]
[]
[null,"Gewinne der Drittempfänger-Organisation werden nicht finanziert."]
[]
[null,"Bei Vertragsergänzungen: Bitte nehmen Sie Budgetanpassungen auf Basis des zuletzt vertraglich vereinbartem Budgets vor und markieren Sie die Änderungen farblich. Kosten, die aufgrund von Währungsschwankungen enstehen, können nicht von der GIZ übernommen werden."]

{"sheet":"Beispiel","index":3,"n_rows":94,"n_cols":15,"rows_kept":94,"cut":false,"hidden":false,"merged":[[85,1,85,9],[86,1,86,9],[72,3,72,7],[73,3,73,7],[68,2,68,7],[70,1,70,7],[69,4,69,6],[80,3,80,6],[76,3,76,7],[78,3,78,6],[79,3,79,6],[91,1,91,9],[71,3,71,7],[59,3,59,7],[67,1,67,7],[93,1,94,9],[81,1,81,7],[81,8,81,9],[87,1,88,9],[89,1,89,9],[90,1,90,9],[83,1,83,10],[5,9,67,9],[48,3,48,7],[64,3,64,7],[84,1,84,9],[28,3,28,7],[1,0,1,8],[37,3,37,7],[22,3,22,7],[4,1,4,7],[4,8,4,9],[5,3,5,7],[11,3,11,7],[30,3,30,7],[29,3,29,7],[31,3,31,7],[32,3,32,7],[33,3,33,7],[34,3,34,7],[35,3,35,7],[36,3,36,7],[12,3,12,7],[93,14,95,14],[11,14,20,14],[22,14,29,14],[37,14,46,14],[48,14,56,14],[59,14,62,14],[30,14,36,14],[5,14,9,14],[64,14,66,14],[68,14,69,14],[71,14,73,14],[76,14,78,14],[43,3,43,7],[44,3,44,7],[45,3,45,7],[46,3,46,7],[47,3,47,7],[53,3,53,7],[49,3,49,7],[50,3,50,7],[51,3,51,7],[52,3,52,7],[54,3,54,7],[55,3,55,7],[60,4,60,6],[61,4,61,6],[77,3,77,6],[75,1,75,7],[74,3,74,7],[65,3,65,7],[66,3,66,7],[56,3,56,7],[57,3,57,7],[58,3,58,7],[62,4,62,6],[63,4,63,6],[13,3,13,7],[14,3,14,7],[15,3,15,7],[16,3,16,7],[17,3,17,7],[18,3,18,7],[19,3,19,7],[20,3,20,7],[21,3,21,7],[23,3,23,7],[24,3,24,7],[25,3,25,7],[26,3,26,7],[27,3,27,7],[42,3,42,7],[38,3,38,7],[39,3,39,7],[40,3,40,7],[41,3,41,7]]}
[null,"CONFIDENTIAL"]
["Budget/Finanzierungsplan - Anlage 1",null,null,null,null,null,null,null,null,{"$f":"'1. Stammdaten (Empfänger)'!C35","v":"00:00:00"},null,null,null,null,"Bearbeitungshinweise:\nDies dient nur zur Orientierung für den Reiter \"Budget Finanzierungen\". "]
[null,null,null,null,null,null,null,null,null,"2024-02"]
[null,"Beschreibung","Code","Anzahl ","Einheit (Person)","Anzahl","Einheit (z.B. Monat, Vertrag, Flug…)","Förderfähig bis zu  \nin EUR \n(Preis pro Einheit) ","Gesamt \nGIZ Anteil \nin EUR (bis zu)","Eigenbeitrag / Drittfinanzierung \nin EUR (bis zu) ",null,null,null,null,"Generelle Hinweise: \nDieses Format des Budgets gilt als Abrechnungsgrundlage. Sie können gerne für Ihren internen Gebrauch weitere Dateien mit ausführlicheren Informationen erstellen.\nAlle Positionen, die im Budget aufgeführt sind, müssen sich in der Projektbeschreibung wiederfinden, um den Projektbezug ersichtlich zu machen. \nDie Tabelle ist mit Formeln gespeist, welche beibehalten werden müssen.  \nBitte behalten Sie die Formatierung mit zwei Nachkommastellen bei. \nEs empfiehlt sich, Einheiten, wenn möglich, aufzurunden. Die Kosten werden mit einem Wert \"bis zu\" vereinbart. "]
[null,"Hinweis: Blaue Felder durch die Zuschussempfangende Partei auszufüllen",null,null,null,null,null,null,"Hinweis: Wird automatisch ausgefüllt",null,null,null,null,null,"Hinweise für die Erstellung "]
[1,"Personal\n(Hinweis: Es können ausschließlich Personaleinzelkosten (monatliches Arbeitgeberbrutto-Entgelt) abgerechnet werden. Zuschläge wie Personalgemeinkosten, die anteilig auf Personal berechnet werden, sind nicht förderfähig. Bitte erfassen Sie nur Funktionsbezeichnungen, keine Namen von Einzelpersonen.\n\na) Kosten für Arbeitnehmer*innen der ZE (nur Mitarbeitende ihrer Organisation): Der Nachweis muss in Form von Gehaltsabrechnungen bzw. bei anteiliger Finanzierung in Form von Gehaltsabrechnungen und Zeitaufschrieben erfolgen (siehe Link in 1b).\n\nb) Kosten für integrierte Gutachter*innen (Selbständige oder Angestellte Dritter, die an die ZE entsandt wurden), welche jeweils unter vergleichbaren Bedingungen wie angestellte Arbeitnehmer*innen tätig sind, sofern dies nach dem jeweils anwendbaren Recht des betreffenden Vertrages mit diesen integrierten Gutachter*innen rechtlich zulässig ist. Nachweisformen siehe: (Anlage 3a - Anforderungen an Zuschussempfänger hinsichtlich Budget und finanzieller Abwicklung)",null,null,null,null,null,null,{"$f":"SUM(I7:I11)","v":94000},"\n\n\n\n\n\n\n\n\n\n\n\n\n\nDie anteilige Finanzierung von Budgetlinien soll vermieden und nur auf Personalkosten sowie Fair-Shared-Kosten angewandt werden. \n\nWeitere Kosten, welche im Rahmen der Projektumsetzung anfallen und nicht durch die GIZ finanziert werden, sind separat zu kalkulieren, entweder als Eigenbeitrag oder  finanzieller Beitrag  Dritter.",null,null,null,null,"Die Spalte \"Förderfähig bis zu\" sollte immer das monatliche Arbeitgeberbrutto-Entgelt ausweisen. Bitte in der Spalte D den Prozentsatz angeben, den die GIZ finanzieren soll. Gesetzliche Personalnebenkosten, die nach dem Recht des jeweiligen Arbeitsvertrags anfallen, können angerechnet werden. Grundsätzlich finanzierbar sind Sozialabgaben, und arbeitsvertraglich oder tariflichvertraglich vereinbarte Zahlungen (ausgenommen sind Bonuszahlungen oder Gewinnbeteiligungen). Davon abweichende Nebenkosten müssen vor Vertragserstellung abgesprochen, geprüft und als Notiz in die Budgetzeile aufgenommen werden. Verträge über Minijobs oder studentische Hilfskräfte sind den Personalkosten zuzuordnen, auch wenn keine Sozialabgaben anfallen.                                                                                                                                                                                         Wenn anteilig mehrere Personen finanziert werden sollen (bspw. 3 Personen à 75%) - bitte entsprechend die Anzahl der Monate erhöhen und die Anzahl der Personen in der Beschreibung der Budgetlinie aufnehmen."]
[null,"Projektmanager",null,1,"Person ",20,"Monate ",3000,{"$f":"D7*F7*H7","v":60000}]
[null,"Finanzmanagerin",null,0.5,"Person ",20,"Monate ",2200,{"$f":"D8*F8*H8","v":22000}]
[null,"Severance Payments / gesetzlich geregelte Rückstellungen",null,1,"Person ",20,"Monate ",600,{"$f":"D9*F9*H9","v":12000}]
[null,null,null,null,"Person ",null,"Monate ",null,0]
[null,null,null,null,"Person ",null,"Monate ",null,0]
[2,"Externe Dienstleistungen (Position bzw. Funktion)",null,null,null,null,null,null,{"$f":"SUM(I13:I22)","v":7000},null,null,null,null,null,"Bitte Funktionstitel angeben; keine Details des Vertrages (Arbeitsstunden etc); nur den geplanten Wert nennen (die relevanten Vergaberichtlinien gemäß Vertragstext müssen eingehalten werden!); pro Leistungsart sollte eine Budgetzeile verwendet werden (alle Kosten, die im Rahmen der Leistungserbringung unter einem Dienstleistungsvertrag anfallen bspw. Training, Reisen, werden in einer Budgetlinie dargestellt).                                                                                                                                                                                                              Veranstaltungen: Leistungen die vom selben Anbieter erbracht werden, sollen in einer Budgetzeile dargestellt werden. (z. Bsp: wenn Catering und der Veranstaltungsort von einem Hotel angeboten werden, dann gehören diese in eine Budgetzeile, wenn ein anderes Hotel für Übernachtungen gebucht wird, gehört dieses in eine einzelne Budgetlinie)  Einnahmen, die die ZE aus dem Veranstaltungsbetrieb erhält, können nicht aus dem Vertrag finanziert werden. Nur tatsächliche nachweisbare Kosten werden finanziert."]
[null,"Catering & Raummiete",null,"Vertrag/Verträge",null,null,null,null,2000]
[null,"Expert*in für Solartechnik",null,"Vertrag/Verträge",null,null,null,null,5000]
[null,"Expert*in für …..",null,"Vertrag/Verträge",null,null,null,null,{"$f":"H15","v":0}]
[null,"externe Arbeitskräfte ( nicht im sozialversicherungpfl. Angestellenverhältnis mit ZE)",null,"Vertrag/Verträge",null,null,null,null,0]
[null,"Beratungsaufträge",null,"Vertrag/Verträge",null,null,null,null,0]
[null,"externe Unternehmen, z.B. für Bus-Transporte",null,"Vertrag/Verträge",null,null,null,null,0]
[null,null,null,"Vertrag/Verträge",null,null,null,null,0]
[null,null,null,"Vertrag/Verträge",null,null,null,null,0]
[null,null,null,"Vertrag/Verträge",null,null,null,null,0]
[null,null,null,"Vertrag/Verträge",null,null,null,null,0]
[3,"Transportkosten / Reisekosten",null,null,null,null,null,null,{"$f":"SUM(I24:I30)","v":14500},null,null,null,null,null,"Zu Reisekosten zählen üblicherweise alle Arten von Transport (z. B. Treibstoff, Fahrzeugmiete, Flugkosten, Bustransfer, Kilometerpauschalen (falls budgetiert), Übernachtung, Tagegelder, Visa). Die Abrechnung erfolgt anhand von Rechnungen und/oder geeigneter Nachweise für Tagegelder (z. B. von Teilnehmenden unterzeichnete Spesenabrechnungen).\n\nBitte geben Sie keine Menge der Flüge an - bei Abweichungen sind Vertragsergänzungen notwendig. Sollte ein Audit stattfinden, wird die Zahl der Flüge geprüft."]
[null,"internationale Flüge",null,"Flüge",null,null,null,null,4000]
[null,"nationale Flüge",null,"Flüge",null,null,null,null,500]
[null,"internationale Reisekosten ( Tage-/ Übernachtungsgeld, Transportmittel, Visa, notwendige Impfungen )",null,"Einheit",null,null,null,null,10000]
[null,"nationale Reisekosten  ( Tage-/Übernachtungsgeld, Transportmittel )",null,"Einheit",null,null,null,null,{"$f":"H27","v":0}]
[null,"Transportkosten von Waren",null,"Einheit",null,null,null,null,0]
[null,"Reisekosten der Workshop-Teilnehmenden",null,"Einheit",null,null,null,null,0]
[null,null,null,null,null,null,null,null,0]
[4,"CO2-Kompensation von Flugreisen",null,null,null,null,null,null,{"$f":"SUM(I32:I37)","v":500},null,null,null,null,null,"CO2-Emissionen, die durch Flugreisen entstehen, können - falls die Vermeidung und Reduktion nicht möglich ist - kompensiert werden. Voraussetzung ist, dass diese Flugreisen in Budgetlinie \"Transportkosten / Reisekosten\" finanziert werden. Nachweis der Flug-Kompensationskosten sind Belege des Kompensationsanbieters aus denen folgende Informationen hervorgehen müssen: Flugstrecke (Start und Ziel), Datum, Buchungsklasse und die errechnete Menge an CO2. Sollten diese Informationen nicht auf den Belegen des Kompensationsanbieters genannt sein, sind die Angaben zur Flugstecke (Start, Ziel, Datum, Buchungsklasse) und die errechnete Menge an CO2 von der ZE zu ergänzen."]
[null,"internationale Flüge",null,"Kompensation",null,null,null,null,200]
[null,"nationale Flüge",null,"Kompensation",null,null,null,null,300]
[null,null,null,null,null,null,null,null,{"$f":"H34","v":0}]
[null,null,null,null,null,null,null,null,0]
[null,null,null,null,null,null,null,null,0]
[null,null,null,null,null,null,null,null,0]
[5,"Beschaffung von Sachgütern",null,null,null,null,null,null,{"$f":"SUM(I39:I48)","v":4000},null,null,null,null,null,"Güter, die beschafft und innerhalb von einer Rechnung nachgewiesen werden, sollen in einer Budgetzeile dargestellt werden. Z. B. kann IT Equipment als eine Budgetlinie aufgeführt werden - in diesem Fall sollte in Klammern näher definiert werden, welche Sachgüter voraussichtlich beschafft werden. Im Fall von Medikamente, Pestiziden oder Mineraldünger sind weitere Details für eine Freigabe notwendig. "]
[null,"IT Equipment (Laptop, Drucker, Beamer, Zubehör)",null,"Beschaffung",null,null,null,null,4000]
[null,"Fotoausrüstung (Kamera und Zubehör)",null,null,"Beschaffung",null,null,null,{"$f":"H40","v":0}]
[null,"Maschine XY (konkrete Angabe, welche Maschine - aber kein konkretes Modell einer Firma nennen!)",null,null,"Beschaffung",null,null,null,0]
[null,"Mobiliar  (Schreibtische, Stühle, Schränke)",null,null,"Beschaffung",null,null,null,0]
[null,"Fahrzeuge genau angeben, welche Art:  z.B. Elektroauto, gepanzerter SUV, Motorroller ...",null,null,"Beschaffung",null,null,null,0]
[null,"Mobiltelefone",null,null,"Beschaffung",null,null,null,0]
[null,"in kind Beiträge an Drittbegüstigte (Nachweis in Form von Beschaffungsbelege und Übergabeprotokoll)",null,null,null,null,null,null,0]
[null,null,null,null,null,null,null,null,0]
[null,null,null,null,null,null,null,null,0]
[null,null,null,null,null,null,null,null,0]
[6,"Sonstige Kosten / Verbrauchsmaterialien",null,null,null,null,null,null,{"$f":"SUM(I50:I59)","v":100},null,null,null,null,null,"Bitte beachten Sie, dass indirekte Kosten unter die Verwaltungsgemeinkosten fallen. Es können nur direkte Kosten als einzelne Budgetlinien budgetiert werden.\nWenn Mietkosten angegeben werden können nur direkte Kosten, sprich die Kaltmiete, kalkuliert werden. Die Nebenkosten sind als indirekte Kosten und somit in die Verwaltungsgemeinkosten mit einzurechnen.                                                                      \nIm Gegensatz zu beschafften Sachgütern, die über einen längeren Zeitraum verwendet werden, handelt es sich bei Verbrauchsmaterialien um Güter, die aufgebraucht werden - wie bspw. Druckerpatronen, Druckerpapier."]
[null,"Büromaterialien (Druckerpapier, Druckerpatronen, Schreibmaterialien)",null,"Einheit",null,null,null,null,100]
[null,"IT-Software, Lizensen",null,null,null,null,null,null,{"$f":"H51","v":0}]
[null,"Verpackungsmaterial für xxx",null,null,null,null,null,null,0]
[null,"Laborbedarf",null,null,null,null,null,null,0]
[null,"Hygienebedarf",null,null,null,null,null,null,0]
[null,"Werkzeug",null,null,null,null,null,null,0]
[null,"Wasser",null,null,null,null,null,null,0]
[null,"Flyer / Werbematerial",null,null,null,null,null,null,0]
[null,"Telefonkosten, Telefonkarten…",null,null,null,null,null,null,0]
[null,null,null,null,null,null,null,null,{"$f":"H59","v":0}]
[7,"Mittel zur direkten Unterstützung von Drittbegünstigten\n(Hinweis: Diese Budgetlinie bezieht sich ausschließlich auf finanzielle Beiträge an Drittbegünstigte. Die Beiträge dürfen nicht für den Erwerb von Medikamenten, Pestiziden und/oder Mineraldüngern verwendet werden. Das Auswahlverfahren für die Drittbegünstigten muss in der Projektbeschreibung verdeutlicht werden. Nachweise: siehe Unterbudgetlinie)",null,null,null,null,null,null,{"$f":"SUM(I61:I64)","v":75600},null,null,null,null,null,"Bitte den Hinweis in der Budgetzeile beachten. Nachweise müssen im Budget vereinbart und Auswahlkriterien in der Projektbeschreibung dargestellt werden. Wichtig: Hier handelt es sich nur um Begünstigte, die von dem Projekt der ZE profitieren. Dazu gehören Start-Up Förderung, Förderung von Initiativen, Cash for Work, Förderwettbewerbe, Stipendien und ähnliches. Absprache zu Nachweisen ist erforderlich. Zu den Details ist eine Beratung beim Vertragsmanagement notwendig. "]
[null,"Cash for Work (Abrechnung erfolgt gegen Teilnahmeliste, Empfangsbestätigung per Unterschrift oder Fingerabdruck; Auswahlverfahren ist in der Projektbeschreibung dargestellt)",null,20,"Personen",null,null,30,{"$f":"D61*H61","v":600}]
[null,"Start-up-Finanzierung (Abrechnung erfolgt gegen Nachweis der tatsächlichen Verwendung durch den/die Drittbegünstigten); Ziffer 5.2 des Vertrages findet Anwendung. ",null,5,"Start-ups",null,null,15000,{"$f":"D62*H62","v":75000}]
[null,null,null,null,null,null,null,null,0]
[null,null,null,null,null,null,null,null,0]
[8,"Fair Shared Costs (gemäß dem Fair Shared Cost Modell der ZE)",null,null,null,null,null,null,{"$f":"SUM(I66:I67)","v":0},null,null,null,null,null,"Diese Budgetlinie ist nur für ZE-Organisationen, die in ihren Buchhaltungssystemen mit einer Verteilung bzw. Umlage der Gemeinkosten arbeiten und diese entsprechend nachweisen können, sofern diese Kosten nicht den Verwaltungsgemeinkosten zugeordnet werden. Die Nachweisart wird für jeden Einzelfall festgelegt. Ein konkretes Beispiel ist der prozentuale Nachweis anhand der Gesamtkosten und Zeitaufschriebe. Bitte den Reiter \"Beispiel\" beachten und den**Hinweistext bei Anwendung einzufügen. "]
[null,"Direkte Fair-Shared-Kosten (6,42% auf die direkten Kosten der Budgetlinien 1 - 6, basierend auf dem Faire-Shared-Costs-Modell der ZE).",null,"Einheit",null,null,null,null,{"$f":"H66","v":0}]
[null,null,null,"Einheit",null,null,null,null,{"$f":"H67","v":0}]
[null,"Zwischensumme - direkte Kosten",null,null,null,null,null,null,{"$f":"I49+I38+I12+I6+I23+I60+I65+I31","v":195700}]
[9,"Verwaltungsgemeinkosten ",null,null,null,null,null,null,{"$f":"I70","v":9785},null,null,null,null,null,"Die Verwaltungsgemeinkosten werden normalerweise als Eigenbetrag der ZE übernommen. Wenn die Übernahme durch die ZE nicht möglich ist, kann die GIZ einen kleinen Anteil der Verwaltungsgemeinkosten übernehmen. Die Art und Höhe der Kosten müssen ggf. vorab durch einen Wirtschaftsprüferenden bestätigt werden. Wenn sich die Verwaltungsgemeinkosten auf weniger Budgetlinien beziehen ist eine Information ans Vertragsmanagement erforderlich. "]
[null,"Verwaltungsgemeinkosten (auf Budgetlinie 1-8)",null,0.05,null,null,null,{"$f":"I68","v":195700},{"$f":"ROUND(D70*H70,2)","v":9785}]
[null,"Zwischensumme - Finanzierung durch GIZ (bis zu - gegen Nachweis)*\n(direkte Kosten + Verwaltungsgemeinkosten)",null,null,null,null,null,null,{"$f":"I68+I69","v":205485}]
[10,"Weiterleitung von Mitteln an Drittempfänger\n- ein detailliertes Budget muss eingereicht werden -",null,null,null,null,null,null,{"$f":"SUM(I73:I75)","v":10000},null,null,null,null,null,"Hier handelt es sich um Drittempfänger-Organisationen (Co-Implementierende Organisationen). Es sind Partnerorganisationen, die eigenständig einen Teil des Projekts umsetzen. Es muss ein gesondertes Budget eingereicht und eine kaufmännische und rechtliche Eignungsprüfung durchgeführt werden. "]
[null,"OPQ",null,"Weiterleitung",null,null,null,null,10000]
[null,"XYZ (Name Drittempfänger-Organisation) ",null,"Weiterleitung",null,null,null,null,{"$f":"H74","v":0}]
[null,"XYZ (Name Drittempfänger-Organisation) ",null,"Weiterleitung",null,null,null,null,0,null,"Anteile in Prozent "]
[null,"GIZ Anteil (bis zu - gegen Nachweis)*",null,null,null,null,null,null,{"$f":"I71+I72","v":215485},{"$f":"I76","v":215485},{"$f":"J76/$I$82","v":0.93491984293988761}]
[11,"Eigenbeitrag / Drittfinanzierung",null,null,null,null,null,null,null,{"$f":"SUM(J78:J80)","v":15000},null,null,null,null,"Geben Sie nur den Gesamtwert des Eigenbeitrags/der Drittfinanzierung an. Eine kurze Beschreibung der Anteilsfinanzierung ist in die Projektbeschreibung mit aufzunehmen. "]
[null,"ABC(Eigenbeitrag)",null,"Beitrag ",null,null,null,5000,null,{"$f":"H78","v":5000},{"$f":"J78/$I$82","v":2.1693385686704123E-2}]
[null,"DEF (Drittfinanzierung)",null,"Beitrag ",null,null,null,10000,null,{"$f":"H79","v":10000},4.3386771373408246E-2]
[null,null,null,"Beitrag ",null,null,null,{"$f":"_xlfn.IFS('1. Stammdaten (Empfänger)'!$C$11=\"Auswählen\", \"\",'1. Stammdaten (Empfänger)'!$C$11>0,'1. Stammdaten (Empfänger)'!G28, TRUE,\"\")","v":""},null,"",{"$f":"IFERROR(J80/$I$82,\"\")","v":""}]
[null,null,null,"Beitrag ",null,null,null,{"$f":"_xlfn.IFS('1. Stammdaten (Empfänger)'!$C$11=\"Auswählen\", \"\",'1. Stammdaten (Empfänger)'!$C$11>0,'1. Stammdaten (Empfänger)'!G29, TRUE,\"\")","v":""},null,{"$f":"H81","v":""},{"$f":"IFERROR(J81/$I$82,\"\")","v":""}]
[null,"Gesamtfinanzierung ",null,null,null,null,null,null,{"$f":"I76+J77","v":230485},null,{"$f":"SUM(K76:K81)","v":1}]
[]
[null,"*Alle Budgetlinien (mit Ausnahme der Verwaltungsgemeinkosten) müssen gegen Nachweis abgerechnet werden."]
[]
[null,"** Die Abrechnung des GIZ-Anteils an den fair shared cost erfolgt durch prozentualen Nachweis anhand der Gesamtkosten und Zeitaufschriebe. (Anteil der Arbeitsstunden für das GIZ-Projekt und der Gesamtbelegschaft) und tatsächliche Kostenbuchungen für Büro- und Einrichtungskosten. Die Büro- und Einrichtungskosten müssen nach Kostenarten (z.B. Büromiete, Kommunikationskosten, Wasser und Strom usw.) aufgeschlüsselt werden und sich zu einer Gesamtsumme addieren. Als Nachweis dienen die eingereichten Belege. Die Berechnung der VZÄ und die Kostenbuchungen der Büro- und Einrichtungskosten werden durch den von der GIZ beauftragten Wirtschaftsprüfer überprüft."]
[]
[null,"Information: Sofern Vergaben für externe Dienstleistungen und/oder für Sachgüter und/oder Lieferungen von GIZ Geldern finanziert werden sollen, müssen die relevanten Vergaberichtlinien gemäß Vertragstext eingehalten werden!"]
[]
[]
[null,"Gewinne der ZE werden nicht finanziert. "]
[null,"Eigenbelege für die Nutzung eigener Einrichtungen und Räume der ZE / der Drittempfänger-Organisation können eingereicht werden, wenn zudem bestätigt wird, dass\na) es sich um die Umverteilung von Selbstkosten der ZE / der Drittempfänger-Organisation innerhalb ihrer eigenen Organisation handelt; Die GIZ behält sich vor, die Selbstkosten stichprobenartig zu prüfen.\nb) eine Nutzung vergleichbarer Einrichtungen zu Marktpreisen keine Kostenersparnis bedeutet."]
[]
[null,"Bei Vertragsergänzungen: Bitte nehmen Sie Budgetanpassungen auf Basis des zuletzt vertraglich vereinbartem Budgets vor und markieren Sie die Änderungen farblich. Kosten, die aufgrund von Währungsschwankungen enstehen, können nicht von der GIZ übernommen werden.",null,null,null,null,null,null,null,null,null,null,null,null,"Im Antrag auf Änderung des Vertrages sollen die Budgetumwidmungen erläutert werden. Insbesondere bei der Erhöhung von Personalkosten ist eine Begründung zu nennen. "]